[Event "Late-Titled-Tuesday-Blitz-April-23-2024"]
[Site "Chess.com"]
[Date "2024.04.23"]
[Round "2"]
[White "gorgeous1083"]
[Black "emeli_chess"]
[Result "0-1"]
[WhiteElo "2083"]
[BlackElo "2453"]
[TimeControl "180+1"]
[EndTime "14:17:45 PDT"]
[Termination "emeli_chess won by resignation"]

1. d4 {[%clk 0:03:00.9]} 1... Nf6 {[%clk 0:02:59.4]} 2. c4 {[%clk 0:03:01.5]}
2... e6 {[%clk 0:02:59.6]} 3. Nf3 {[%clk 0:03:02.2]} 3... d5 {[%clk 0:02:58.8]}
4. Nc3 {[%clk 0:03:02.5]} 4... Bb4 {[%clk 0:02:58.9]} 5. cxd5 {[%clk 0:03:02.2]}
5... exd5 {[%clk 0:02:58.8]} 6. Bg5 {[%clk 0:03:02.8]} 6... h6 {[%clk
0:02:58.7]} 7. Bh4 {[%clk 0:03:03.4]} 7... c5 {[%clk 0:02:57.4]} 8. e3 {[%clk
0:03:02.9]} 8... g5 {[%clk 0:02:54.9]} 9. Bg3 {[%clk 0:03:01.5]} 9... Qa5 {[%clk
0:02:54.4]} 10. Qc2 {[%clk 0:02:54.7]} 10... Ne4 {[%clk 0:02:54.2]} 11. Rc1
{[%clk 0:02:38.2]} 11... Qxa2 {[%clk 0:02:51.3]} 12. Bb5+ {[%clk 0:02:29.3]}
12... Bd7 {[%clk 0:02:49.4]} 13. O-O {[%clk 0:02:22.9]} 13... Bxc3 {[%clk
0:02:48.6]} 14. Bxd7+ {[%clk 0:02:21.8]} 14... Nxd7 {[%clk 0:02:48.4]} 15. bxc3
{[%clk 0:02:20.8]} 15... Qxc2 {[%clk 0:02:48.6]} 16. Rxc2 {[%clk 0:02:20.4]}
16... c4 {[%clk 0:02:49]} 17. Rb1 {[%clk 0:02:11.2]} 17... b6 {[%clk 0:01:56]}
18. Rb5 {[%clk 0:02:02]} 18... Nxg3 {[%clk 0:01:50.5]} 19. hxg3 {[%clk
0:02:00.8]} 19... Nf6 {[%clk 0:01:49.1]} 20. Ne5 {[%clk 0:01:48.5]} 20... Ke7
{[%clk 0:01:35.6]} 21. f3 {[%clk 0:01:47.1]} 21... Ke6 {[%clk 0:01:22]} 22. e4
{[%clk 0:01:38.5]} 22... dxe4 {[%clk 0:01:20.2]} 23. Nxc4 {[%clk 0:01:36.5]}
23... Rhc8 {[%clk 0:01:11.2]} 24. Re5+ {[%clk 0:01:29.3]} 24... Kd7 {[%clk
0:01:11.1]} 25. Ne3 {[%clk 0:01:07.5]} 25... Re8 {[%clk 0:01:02.5]} 26. Rf5
{[%clk 0:01:03]} 26... exf3 {[%clk 0:01:01.3]} 27. Rxf6 {[%clk 0:00:59.5]} 27...
Rxe3 {[%clk 0:01:00.8]} 28. Rxf7+ {[%clk 0:00:59.8]} 28... Re7 {[%clk
0:00:56.4]} 29. Rxe7+ {[%clk 0:00:58.1]} 29... Kxe7 {[%clk 0:00:56]} 30. gxf3
{[%clk 0:00:59]} 30... a5 {[%clk 0:00:51.9]} 31. Kf2 {[%clk 0:00:56.9]} 31... a4
{[%clk 0:00:52]} 32. Ra2 {[%clk 0:00:57]} 32... b5 {[%clk 0:00:50.9]} 33. Ke3
{[%clk 0:00:56.6]} 33... Kd6 {[%clk 0:00:50.4]} 34. Kd3 {[%clk 0:00:56.7]} 34...
Kd5 {[%clk 0:00:47.6]} 35. Ra3 {[%clk 0:00:56.6]} 35... Ra7 {[%clk 0:00:46.9]}
36. Ra2 {[%clk 0:00:48]} 36... a3 {[%clk 0:00:46.3]} 37. Kc2 {[%clk 0:00:46.8]}
37... Kc4 {[%clk 0:00:46.3]} 38. Kd2 {[%clk 0:00:46.4]} 38... Kb3 {[%clk
0:00:44.1]} 39. Ra1 {[%clk 0:00:38.8]} 39... a2 {[%clk 0:00:44.4]} 40. Kc1
{[%clk 0:00:31.1]} 40... Kxc3 {[%clk 0:00:44.1]} 41. d5 {[%clk 0:00:31.8]} 41...
b4 {[%clk 0:00:43.8]} 42. d6 {[%clk 0:00:31.2]} 42... b3 {[%clk 0:00:43.9]} 0-1

[Event "Late-Titled-Tuesday-Blitz-April-23-2024"]
[Site "Chess.com"]
[Date "2024.04.23"]
[Round "2"]
[White "egnfanclub"]
[Black "jlf287"]
[Result "0-1"]
[WhiteElo "2355"]
[BlackElo "2544"]
[TimeControl "180+1"]
[EndTime "14:17:47 PDT"]
[Termination "jlf287 won by resignation"]

1. e4 {[%clk 0:03:00.9]} 1... e5 {[%clk 0:02:58.3]} 2. Nf3 {[%clk 0:03:00.6]}
2... Nc6 {[%clk 0:02:59]} 3. Nc3 {[%clk 0:03:00.3]} 3... Nf6 {[%clk 0:02:59]} 4.
a3 {[%clk 0:03:00.6]} 4... a6 {[%clk 0:02:58]} 5. d4 {[%clk 0:02:59.7]} 5...
exd4 {[%clk 0:02:58.1]} 6. Nxd4 {[%clk 0:03:00.5]} 6... Bc5 {[%clk 0:02:52]} 7.
Nxc6 {[%clk 0:03:00.5]} 7... bxc6 {[%clk 0:02:50.1]} 8. Bd3 {[%clk 0:03:01.1]}
8... d6 {[%clk 0:02:48.5]} 9. Bg5 {[%clk 0:02:53.1]} 9... h6 {[%clk 0:02:45.3]}
10. Bh4 {[%clk 0:02:53.3]} 10... O-O {[%clk 0:02:45.9]} 11. Qf3 {[%clk
0:02:43.6]} 11... Re8 {[%clk 0:02:45.3]} 12. O-O {[%clk 0:02:43.3]} 12... Bd4
{[%clk 0:02:43.4]} 13. Nd1 {[%clk 0:02:16.8]} 13... g5 {[%clk 0:02:26]} 14. c3
{[%clk 0:02:12.1]} 14... Bg4 {[%clk 0:02:17.7]} 15. Qg3 {[%clk 0:02:04.5]} 15...
gxh4 {[%clk 0:02:12.6]} 16. Qxh4 {[%clk 0:02:04.5]} 16... Bb6 {[%clk 0:02:09.8]}
17. Qxh6 {[%clk 0:02:03.2]} 17... Re5 {[%clk 0:01:58.5]} 18. Ne3 {[%clk
0:02:02.6]} 18... Rh5 {[%clk 0:01:53.4]} 19. Qf4 {[%clk 0:02:01]} 19... Be6
{[%clk 0:01:51.4]} 20. Nf5 {[%clk 0:01:56.9]} 20... Nh7 {[%clk 0:01:29]} 21. g4
{[%clk 0:01:42.3]} 21... Rg5 {[%clk 0:01:14.6]} 22. h4 {[%clk 0:01:33.8]} 22...
Rg6 {[%clk 0:01:15]} 23. e5 {[%clk 0:01:01]} 23... dxe5 {[%clk 0:01:08.1]} 24.
Qe4 {[%clk 0:01:01.3]} 24... Nf6 {[%clk 0:01:00]} 25. Qxe5 {[%clk 0:00:59.8]}
25... Rxg4+ {[%clk 0:00:46.7]} 26. Kh1 {[%clk 0:00:59.9]} 26... Qxd3 {[%clk
0:00:38.7]} 27. Nh6+ {[%clk 0:00:50.1]} 27... Kg7 {[%clk 0:00:34.9]} 28. Nxg4
{[%clk 0:00:48.6]} 28... Bxg4 {[%clk 0:00:24.2]} 29. Qg5+ {[%clk 0:00:47.3]}
29... Qg6 {[%clk 0:00:21.6]} 30. Rg1 {[%clk 0:00:41.3]} 30... Qxg5 {[%clk
0:00:16.4]} 31. hxg5 {[%clk 0:00:40.6]} 31... Bf3+ {[%clk 0:00:16.8]} 32. Kh2
{[%clk 0:00:40.8]} 32... Ne4 {[%clk 0:00:15.7]} 0-1

[Event "Late-Titled-Tuesday-Blitz-April-23-2024"]
[Site "Chess.com"]
[Date "2024.04.23"]
[Round "2"]
[White "sassassasss"]
[Black "shirovin"]
[Result "1-0"]
[WhiteElo "2452"]
[BlackElo "2074"]
[TimeControl "180+1"]
[EndTime "14:17:47 PDT"]
[Termination "sassassasss won on time"]

1. e4 {[%clk 0:02:59]} 1... Nf6 {[%clk 0:02:59]} 2. Nc3 {[%clk 0:02:58.4]} 2...
d6 {[%clk 0:02:53]} 3. d4 {[%clk 0:02:57.8]} 3... e5 {[%clk 0:02:50]} 4. Nf3
{[%clk 0:02:55.8]} 4... Nbd7 {[%clk 0:02:48.7]} 5. g4 {[%clk 0:02:56.1]} 5...
Nxg4 {[%clk 0:02:46]} 6. Rg1 {[%clk 0:02:55.8]} 6... Ngf6 {[%clk 0:02:42.1]} 7.
Be3 {[%clk 0:02:55.7]} 7... g6 {[%clk 0:02:34.2]} 8. Qd2 {[%clk 0:02:55.2]} 8...
Bg7 {[%clk 0:02:28.1]} 9. Bh6 {[%clk 0:02:54.2]} 9... O-O {[%clk 0:02:24.4]} 10.
Bxg7 {[%clk 0:02:53.7]} 10... Kxg7 {[%clk 0:02:23.8]} 11. O-O-O {[%clk 0:02:54]}
11... c6 {[%clk 0:02:21.9]} 12. dxe5 {[%clk 0:02:49.9]} 12... dxe5 {[%clk
0:02:17.8]} 13. Nxe5 {[%clk 0:02:49.7]} 13... Qe7 {[%clk 0:02:13.4]} 14. Ng4
{[%clk 0:02:43.3]} 14... Nxg4 {[%clk 0:02:04]} 15. Rxg4 {[%clk 0:02:42.5]} 15...
Ne5 {[%clk 0:02:03.6]} 16. Rg1 {[%clk 0:02:36.7]} 16... Bg4 {[%clk 0:02:01.1]}
17. Be2 {[%clk 0:02:33.8]} 17... Bxe2 {[%clk 0:01:25.1]} 18. Qxe2 {[%clk
0:02:33.4]} 18... Rad8 {[%clk 0:01:24.4]} 19. f4 {[%clk 0:02:30.6]} 19... Nd7
{[%clk 0:01:22.5]} 20. Qe3 {[%clk 0:02:18.2]} 20... Nb6 {[%clk 0:01:16.7]} 21.
f5 {[%clk 0:02:13]} 21... Qe5 {[%clk 0:01:11.6]} 22. Rdf1 {[%clk 0:02:08.1]}
22... Kh8 {[%clk 0:00:58.1]} 23. h4 {[%clk 0:02:06.4]} 23... Nc4 {[%clk
0:00:52.3]} 24. Qh6 {[%clk 0:01:59.3]} 24... Qg7 {[%clk 0:00:49.6]} 25. Qg5
{[%clk 0:01:53]} 25... h6 {[%clk 0:00:40.7]} 26. Qg3 {[%clk 0:01:40.4]} 26...
Kh7 {[%clk 0:00:34.6]} 27. f6 {[%clk 0:01:33.1]} 27... Qg8 {[%clk 0:00:32.8]}
28. h5 {[%clk 0:01:31.5]} 28... Rfe8 {[%clk 0:00:29.3]} 29. hxg6+ {[%clk
0:01:27.8]} 29... Qxg6 {[%clk 0:00:27.6]} 30. Qf4 {[%clk 0:01:26.5]} 30... Qh5
{[%clk 0:00:22.2]} 31. b3 {[%clk 0:01:02]} 31... Ne5 {[%clk 0:00:11.2]} 32. Rg7+
{[%clk 0:00:56.2]} 32... Kh8 {[%clk 0:00:10]} 33. Kb2 {[%clk 0:00:56.1]} 33...
b5 {[%clk 0:00:08.3]} 34. Rf2 {[%clk 0:00:55.2]} 34... Ng6 {[%clk 0:00:03]} 35.
Qc7 {[%clk 0:00:49.1]} 1-0

[Event "Late-Titled-Tuesday-Blitz-April-23-2024"]
[Site "Chess.com"]
[Date "2024.04.23"]
[Round "2"]
[White "jinxy2009"]
[Black "KNVB"]
[Result "0-1"]
[WhiteElo "2309"]
[BlackElo "2715"]
[TimeControl "180+1"]
[EndTime "14:17:48 PDT"]
[Termination "KNVB won by resignation"]

1. e4 {[%clk 0:03:00.9]} 1... c5 {[%clk 0:02:58]} 2. Nf3 {[%clk 0:03:00.6]} 2...
e6 {[%clk 0:02:57.8]} 3. d4 {[%clk 0:03:00.6]} 3... cxd4 {[%clk 0:02:58.1]} 4.
Nxd4 {[%clk 0:03:01.5]} 4... Nc6 {[%clk 0:02:58.5]} 5. Nc3 {[%clk 0:03:01.6]}
5... Qc7 {[%clk 0:02:58.7]} 6. Be3 {[%clk 0:03:01.9]} 6... a6 {[%clk 0:02:57.7]}
7. g4 {[%clk 0:03:01.1]} 7... Ne5 {[%clk 0:02:35.5]} 8. f3 {[%clk 0:02:50.4]}
8... b5 {[%clk 0:02:32.6]} 9. a3 {[%clk 0:02:47.1]} 9... Bb7 {[%clk 0:02:31.8]}
10. Qd2 {[%clk 0:02:46.8]} 10... Rc8 {[%clk 0:01:30.7]} 11. Be2 {[%clk 0:02:41]}
11... Be7 {[%clk 0:01:00.7]} 12. h4 {[%clk 0:02:32.9]} 12... Nf6 {[%clk
0:00:54.8]} 13. g5 {[%clk 0:02:18.3]} 13... Nh5 {[%clk 0:00:54]} 14. f4 {[%clk
0:02:18.7]} 14... Nc4 {[%clk 0:00:28.2]} 15. Bxc4 {[%clk 0:02:12.2]} 15... Qxc4
{[%clk 0:00:29.1]} 16. Qe2 {[%clk 0:02:02.5]} 16... Ng3 {[%clk 0:00:24.7]} 17.
Qxc4 {[%clk 0:01:58.1]} 17... Rxc4 {[%clk 0:00:25.6]} 18. Rg1 {[%clk 0:01:57.7]}
18... Nxe4 {[%clk 0:00:24]} 19. Nxe4 {[%clk 0:01:58.6]} 19... Bxe4 {[%clk
0:00:24.7]} 20. c3 {[%clk 0:01:59.3]} 20... f6 {[%clk 0:00:12.1]} 21. Kd2 {[%clk
0:01:57.7]} 21... Kf7 {[%clk 0:00:12.1]} 22. b3 {[%clk 0:01:56.1]} 22... Rc7
{[%clk 0:00:09.7]} 23. a4 {[%clk 0:01:56.6]} 23... Rb7 {[%clk 0:00:04.7]} 24.
axb5 {[%clk 0:01:55.6]} 24... axb5 {[%clk 0:00:05.6]} 25. b4 {[%clk 0:01:51.7]}
25... Bd5 {[%clk 0:00:04.5]} 26. Ra5 {[%clk 0:01:49.1]} 26... Bc4 {[%clk
0:00:04.9]} 27. Nc2 {[%clk 0:01:49.3]} 27... e5 {[%clk 0:00:03.3]} 28. fxe5
{[%clk 0:01:42.8]} 28... fxe5 {[%clk 0:00:04.2]} 29. Na3 {[%clk 0:01:43]} 29...
Rc8 {[%clk 0:00:04.1]} 30. Rg4 {[%clk 0:01:39.6]} 30... Be6 {[%clk 0:00:01.9]}
31. Rg3 {[%clk 0:01:36.4]} 31... Rcb8 {[%clk 0:00:02.3]} 32. Rf3+ {[%clk
0:01:35.5]} 32... Ke8 {[%clk 0:00:02.9]} 33. Bf2 {[%clk 0:01:28.8]} 33... d6
{[%clk 0:00:03.4]} 34. Rd3 {[%clk 0:01:28.2]} 34... Kd7 {[%clk 0:00:03.4]} 35.
Bg3 {[%clk 0:01:24.7]} 35... Ke8 {[%clk 0:00:03.5]} 36. Bf2 {[%clk 0:01:24.8]}
36... Bd8 {[%clk 0:00:03.5]} 37. Ra6 {[%clk 0:01:23.7]} 37... Bc7 {[%clk
0:00:04.2]} 38. Kc2 {[%clk 0:01:17.2]} 38... Bf5 {[%clk 0:00:04.4]} 39. Kd2
{[%clk 0:01:16.7]} 39... Bxd3 {[%clk 0:00:05]} 40. Kxd3 {[%clk 0:01:17.6]} 40...
Ke7 {[%clk 0:00:05.7]} 41. Ke4 {[%clk 0:01:15.6]} 41... Ke6 {[%clk 0:00:06.3]}
42. h5 {[%clk 0:01:15.1]} 42... Rf8 {[%clk 0:00:06.5]} 43. Be3 {[%clk
0:01:15.2]} 43... g6 {[%clk 0:00:06.2]} 44. h6 {[%clk 0:01:13.8]} 44... Rf1
{[%clk 0:00:06.3]} 45. c4 {[%clk 0:01:11.4]} 45... bxc4 {[%clk 0:00:06.5]} 46.
b5 {[%clk 0:01:12]} 46... Ra1 {[%clk 0:00:03.3]} 47. b6 {[%clk 0:01:09.1]} 47...
d5+ {[%clk 0:00:03.2]} 48. Kf3 {[%clk 0:01:08.5]} 48... Bd6 {[%clk 0:00:03.4]}
49. Nb5 {[%clk 0:01:08.5]} 49... Rxa6 {[%clk 0:00:03.4]} 0-1

[Event "Late-Titled-Tuesday-Blitz-April-23-2024"]
[Site "Chess.com"]
[Date "2024.04.23"]
[Round "2"]
[White "zsizsi99"]
[Black "Horokoskii"]
[Result "1-0"]
[WhiteElo "2468"]
[BlackElo "2167"]
[TimeControl "180+1"]
[EndTime "14:17:48 PDT"]
[Termination "zsizsi99 won by resignation"]

1. e4 {[%clk 0:03:00.9]} 1... c5 {[%clk 0:03:00.5]} 2. Nf3 {[%clk 0:02:58.7]}
2... Nc6 {[%clk 0:03:00.5]} 3. Bb5 {[%clk 0:02:58.1]} 3... Nd4 {[%clk
0:02:57.5]} 4. Nxd4 {[%clk 0:02:55.1]} 4... cxd4 {[%clk 0:02:58.4]} 5. O-O
{[%clk 0:02:48.4]} 5... a6 {[%clk 0:02:58.4]} 6. Bc4 {[%clk 0:02:46.1]} 6... b5
{[%clk 0:02:54.5]} 7. Bb3 {[%clk 0:02:42.8]} 7... e6 {[%clk 0:02:50.5]} 8. c3
{[%clk 0:02:40.3]} 8... dxc3 {[%clk 0:02:48.3]} 9. bxc3 {[%clk 0:02:29]} 9...
Bb7 {[%clk 0:02:48.1]} 10. e5 {[%clk 0:02:28.6]} 10... Ne7 {[%clk 0:02:47.5]}
11. d4 {[%clk 0:02:26.8]} 11... Nd5 {[%clk 0:02:43.5]} 12. a4 {[%clk 0:02:13.9]}
12... Be7 {[%clk 0:02:37.9]} 13. Qd3 {[%clk 0:02:09.5]} 13... O-O {[%clk
0:02:28.4]} 14. Qg3 {[%clk 0:01:34.5]} 14... Bh4 {[%clk 0:02:02.5]} 15. Qg4
{[%clk 0:01:32.1]} 15... f5 {[%clk 0:02:02.1]} 16. exf6 {[%clk 0:01:31.3]} 16...
Bxf6 {[%clk 0:02:01.8]} 17. Ba3 {[%clk 0:01:19.9]} 17... Be7 {[%clk 0:01:58.4]}
18. Bc2 {[%clk 0:00:49.7]} 18... Bxa3 {[%clk 0:01:53.5]} 19. Rxa3 {[%clk
0:00:47.6]} 19... Qf6 {[%clk 0:01:34.3]} 20. Nd2 {[%clk 0:00:32.9]} 20... Nf4
{[%clk 0:01:24.1]} 21. Ne4 {[%clk 0:00:30.2]} 21... Qf5 {[%clk 0:01:15]} 22.
Qxf5 {[%clk 0:00:20.8]} 22... exf5 {[%clk 0:01:15.9]} 23. Nd6 {[%clk 0:00:19]}
23... Bxg2 {[%clk 0:01:13.8]} 24. Re1 {[%clk 0:00:18.4]} 24... Bf3 {[%clk
0:00:53.6]} 25. Nxf5 {[%clk 0:00:17.7]} 25... Rae8 {[%clk 0:00:38.1]} 26. Re3
{[%clk 0:00:17.8]} 26... Ne2+ {[%clk 0:00:29.6]} 27. Kf1 {[%clk 0:00:17.9]}
27... Nf4 {[%clk 0:00:26.7]} 28. Rxf3 {[%clk 0:00:17.3]} 28... Nd5 {[%clk
0:00:19.9]} 29. Bb3 {[%clk 0:00:15.1]} 1-0

[Event "Late-Titled-Tuesday-Blitz-April-23-2024"]
[Site "Chess.com"]
[Date "2024.04.23"]
[Round "2"]
[White "jaskol95"]
[Black "platy3"]
[Result "0-1"]
[WhiteElo "2603"]
[BlackElo "2891"]
[TimeControl "180+1"]
[EndTime "14:17:49 PDT"]
[Termination "platy3 won by resignation"]

1. e4 {[%clk 0:03:00.9]} 1... c5 {[%clk 0:02:59.7]} 2. Nf3 {[%clk 0:03:01.3]}
2... e6 {[%clk 0:03:00.4]} 3. d4 {[%clk 0:03:01]} 3... cxd4 {[%clk 0:03:01.3]}
4. Nxd4 {[%clk 0:03:01.6]} 4... Nc6 {[%clk 0:03:01.6]} 5. Nc3 {[%clk 0:03:02.3]}
5... Qc7 {[%clk 0:03:00.9]} 6. Ncb5 {[%clk 0:03:02]} 6... Qb8 {[%clk 0:02:59.2]}
7. Be3 {[%clk 0:03:02]} 7... Nf6 {[%clk 0:02:53.4]} 8. Bd3 {[%clk 0:02:57.3]}
8... a6 {[%clk 0:02:49.7]} 9. Nxc6 {[%clk 0:02:56.4]} 9... dxc6 {[%clk 0:02:43]}
10. Nd4 {[%clk 0:02:55.6]} 10... c5 {[%clk 0:02:36.5]} 11. Nb3 {[%clk
0:02:51.7]} 11... Qc7 {[%clk 0:02:31]} 12. Qe2 {[%clk 0:02:48.4]} 12... b5
{[%clk 0:02:29]} 13. c4 {[%clk 0:02:47.6]} 13... bxc4 {[%clk 0:02:22.1]} 14.
Bxc4 {[%clk 0:02:47]} 14... Nxe4 {[%clk 0:02:13.9]} 15. O-O {[%clk 0:02:39.8]}
15... Bb7 {[%clk 0:02:13.3]} 16. Rfd1 {[%clk 0:02:31.6]} 16... Bd6 {[%clk
0:02:11]} 17. Qg4 {[%clk 0:02:13.5]} 17... O-O {[%clk 0:01:58.2]} 18. Bh6 {[%clk
0:02:01.5]} 18... Bxh2+ {[%clk 0:01:24.6]} 19. Kf1 {[%clk 0:02:00.7]} 19... Be5
{[%clk 0:01:24.6]} 20. Re1 {[%clk 0:01:46.6]} 20... Kh8 {[%clk 0:01:22.4]} 21.
Rxe4 {[%clk 0:01:30.8]} 21... f5 {[%clk 0:01:20.6]} 22. Qh4 {[%clk 0:01:12.4]}
22... Bxe4 {[%clk 0:01:16.8]} 23. Bg5 {[%clk 0:01:08.7]} 23... Bd5 {[%clk
0:01:09.4]} 24. Nd2 {[%clk 0:00:59.4]} 24... Bf6 {[%clk 0:01:06.7]} 25. Bxf6
{[%clk 0:00:59]} 25... Rxf6 {[%clk 0:01:07.6]} 26. Bxd5 {[%clk 0:00:58.9]} 26...
exd5 {[%clk 0:00:57.4]} 27. Qg5 {[%clk 0:00:54]} 27... Re8 {[%clk 0:00:55.3]}
28. Nf3 {[%clk 0:00:52.5]} 28... h6 {[%clk 0:00:54.9]} 29. Qd2 {[%clk
0:00:50.6]} 29... d4 {[%clk 0:00:53.6]} 30. g3 {[%clk 0:00:50.4]} 30... Qc6
{[%clk 0:00:53.1]} 31. Ng1 {[%clk 0:00:38.9]} 31... f4 {[%clk 0:00:51.6]} 32. f3
{[%clk 0:00:36.1]} 32... fxg3 {[%clk 0:00:51.3]} 33. Kg2 {[%clk 0:00:36.7]}
33... Re3 {[%clk 0:00:49.8]} 34. Rf1 {[%clk 0:00:34.2]} 34... Qd6 {[%clk
0:00:39.1]} 35. Rd1 {[%clk 0:00:29.1]} 35... Rfe6 {[%clk 0:00:37.2]} 36. Rf1
{[%clk 0:00:22.1]} 36... Qe5 {[%clk 0:00:36.1]} 37. f4 {[%clk 0:00:20.4]} 37...
Qd5+ {[%clk 0:00:35.6]} 38. Rf3 {[%clk 0:00:17.5]} 38... Rxf3 {[%clk 0:00:35.4]}
39. Nxf3 {[%clk 0:00:17.8]} 39... Re3 {[%clk 0:00:36]} 40. Qd1 {[%clk 0:00:17]}
40... Qxf3+ {[%clk 0:00:35.2]} 41. Qxf3 {[%clk 0:00:16.9]} 41... Rxf3 {[%clk
0:00:36.1]} 0-1

[Event "Late-Titled-Tuesday-Blitz-April-23-2024"]
[Site "Chess.com"]
[Date "2024.04.23"]
[Round "2"]
[White "Szachulec75"]
[Black "Matalon"]
[Result "1-0"]
[WhiteElo "2086"]
[BlackElo "2431"]
[TimeControl "180+1"]
[EndTime "14:17:51 PDT"]
[Termination "Szachulec75 won by resignation"]

1. Nf3 {[%clk 0:03:00.9]} 1... Nf6 {[%clk 0:02:59.2]} 2. g3 {[%clk 0:02:59.3]}
2... g6 {[%clk 0:02:58.7]} 3. Bg2 {[%clk 0:02:59.2]} 3... Bg7 {[%clk 0:02:58.7]}
4. d3 {[%clk 0:03:00.1]} 4... O-O {[%clk 0:02:58]} 5. O-O {[%clk 0:03:01]} 5...
d6 {[%clk 0:02:58.3]} 6. c4 {[%clk 0:03:00]} 6... e5 {[%clk 0:02:57.9]} 7. Nc3
{[%clk 0:03:00.6]} 7... Nc6 {[%clk 0:02:58]} 8. Rb1 {[%clk 0:03:00.6]} 8... a5
{[%clk 0:02:57.1]} 9. a3 {[%clk 0:03:00.1]} 9... Nd4 {[%clk 0:02:57.7]} 10. e3
{[%clk 0:02:55.3]} 10... Nxf3+ {[%clk 0:02:56.6]} 11. Bxf3 {[%clk 0:02:53.4]}
11... c6 {[%clk 0:02:57]} 12. Bg2 {[%clk 0:02:52.2]} 12... d5 {[%clk 0:02:56.7]}
13. cxd5 {[%clk 0:02:44.6]} 13... cxd5 {[%clk 0:02:56.5]} 14. Nb5 {[%clk
0:02:44.8]} 14... Qb6 {[%clk 0:02:47.9]} 15. Nc3 {[%clk 0:02:35.4]} 15... Be6
{[%clk 0:02:47.4]} 16. Bd2 {[%clk 0:02:33.1]} 16... d4 {[%clk 0:02:42.9]} 17.
exd4 {[%clk 0:02:30.8]} 17... exd4 {[%clk 0:02:43.1]} 18. Ne4 {[%clk 0:02:27.8]}
18... Bb3 {[%clk 0:02:40.8]} 19. Nxf6+ {[%clk 0:02:15.1]} 19... Bxf6 {[%clk
0:02:39.6]} 20. Qf3 {[%clk 0:02:14.5]} 20... Rae8 {[%clk 0:02:18.6]} 21. Rbe1
{[%clk 0:02:08]} 21... Rxe1 {[%clk 0:01:58.1]} 22. Rxe1 {[%clk 0:01:57.4]} 22...
Bc2 {[%clk 0:01:55.5]} 23. b4 {[%clk 0:01:54.8]} 23... axb4 {[%clk 0:01:40.9]}
24. Bxb4 {[%clk 0:01:54.4]} 24... Rd8 {[%clk 0:01:40.5]} 25. h4 {[%clk
0:01:42.4]} 25... h5 {[%clk 0:01:38.9]} 26. Rc1 {[%clk 0:01:37.9]} 26... Ba4
{[%clk 0:01:23.4]} 27. Qxb7 {[%clk 0:01:37.9]} 27... Qxb7 {[%clk 0:01:17.9]} 28.
Bxb7 {[%clk 0:01:38]} 28... Bb5 {[%clk 0:01:18.6]} 29. Be4 {[%clk 0:01:31.7]}
29... Kg7 {[%clk 0:01:12.8]} 30. Rc5 {[%clk 0:01:31.8]} 30... Rb8 {[%clk
0:01:09]} 31. Rc7 {[%clk 0:01:26.2]} 31... Be5 {[%clk 0:01:04.8]} 32. Re7 {[%clk
0:01:18.3]} 32... Kf6 {[%clk 0:01:02.7]} 33. Ra7 {[%clk 0:01:09.5]} 33... Rc8
{[%clk 0:00:54.4]} 34. Rb7 {[%clk 0:01:06.3]} 34... Be8 {[%clk 0:00:47.3]} 35.
Be7+ {[%clk 0:00:52.4]} 35... Ke6 {[%clk 0:00:46.6]} 36. Bb4 {[%clk 0:00:53]}
36... f5 {[%clk 0:00:45.3]} 37. Bf3 {[%clk 0:00:47.4]} 37... Bb5 {[%clk
0:00:43.3]} 38. Re7+ {[%clk 0:00:40.9]} 38... Kf6 {[%clk 0:00:43]} 39. Bd5
{[%clk 0:00:40.9]} 39... Rc7 {[%clk 0:00:36.9]} 40. Re6+ {[%clk 0:00:39.9]}
40... Kg7 {[%clk 0:00:35]} 41. Rxe5 {[%clk 0:00:40]} 41... Bxd3 {[%clk
0:00:34.1]} 42. Re7+ {[%clk 0:00:37.3]} 42... Kh6 {[%clk 0:00:31.6]} 43. Rxc7
{[%clk 0:00:36.6]} 1-0

[Event "Late-Titled-Tuesday-Blitz-April-23-2024"]
[Site "Chess.com"]
[Date "2024.04.23"]
[Round "2"]
[White "NMJeevanK"]
[Black "Rud_Makarian"]
[Result "0-1"]
[WhiteElo "2658"]
[BlackElo "3051"]
[TimeControl "180+1"]
[EndTime "14:17:52 PDT"]
[Termination "Rud_Makarian won by checkmate"]

1. e4 {[%clk 0:03:00.9]} 1... c5 {[%clk 0:02:59.9]} 2. Nc3 {[%clk 0:03:00.4]}
2... Nc6 {[%clk 0:02:59.7]} 3. Bb5 {[%clk 0:03:00.7]} 3... e6 {[%clk 0:03:00.3]}
4. Bxc6 {[%clk 0:03:00]} 4... bxc6 {[%clk 0:03:01.2]} 5. d3 {[%clk 0:02:59.7]}
5... d5 {[%clk 0:03:01.8]} 6. f4 {[%clk 0:02:58.3]} 6... Nf6 {[%clk 0:03:02.4]}
7. Qe2 {[%clk 0:02:53]} 7... c4 {[%clk 0:03:00.6]} 8. dxc4 {[%clk 0:02:52]} 8...
Ba6 {[%clk 0:03:01.1]} 9. exd5 {[%clk 0:02:32.8]} 9... cxd5 {[%clk 0:02:59.9]}
10. Nb5 {[%clk 0:02:28.6]} 10... dxc4 {[%clk 0:02:49.8]} 11. a4 {[%clk
0:02:13.5]} 11... Bc5 {[%clk 0:02:47.7]} 12. Qxc4 {[%clk 0:02:06.7]} 12... Rc8
{[%clk 0:02:48]} 13. Qd3 {[%clk 0:01:56.7]} 13... Qb6 {[%clk 0:02:44.4]} 14. Nf3
{[%clk 0:01:50.3]} 14... O-O {[%clk 0:02:44.6]} 15. Bd2 {[%clk 0:01:41.8]} 15...
Rfd8 {[%clk 0:02:42.7]} 16. Qb3 {[%clk 0:01:41.2]} 16... Bf2+ {[%clk 0:02:38.5]}
17. Ke2 {[%clk 0:01:30.8]} 17... Ne4 {[%clk 0:02:25.5]} 18. Rhd1 {[%clk
0:00:40.5]} 18... Rxc2 {[%clk 0:02:21.1]} 19. Rac1 {[%clk 0:00:19.5]} 19... Bh4
{[%clk 0:01:00.8]} 20. Nd4 {[%clk 0:00:12.8]} 20... Qxd4 {[%clk 0:00:57]} 21.
Kf3 {[%clk 0:00:02.9]} 21... Qf2+ {[%clk 0:00:42.8]} 22. Kg4 {[%clk 0:00:03.1]}
22... Qxg2+ {[%clk 0:00:26.3]} 23. Kxh4 {[%clk 0:00:03.2]} 23... Qxh2+ {[%clk
0:00:19.6]} 24. Qh3 {[%clk 0:00:03.9]} 24... Qf2+ {[%clk 0:00:19.3]} 25. Kg4
{[%clk 0:00:04.3]} 25... Nf6+ {[%clk 0:00:16]} 26. Kg5 {[%clk 0:00:04.1]} 26...
h6+ {[%clk 0:00:14.4]} 27. Qxh6 {[%clk 0:00:03.5]} 27... Qg3# {[%clk 0:00:13.9]}
0-1